fUST/lending_fUST_20240711
["ID","MTS","AMOUNT","RATE_DAILY","PERIOD"]
[331689462,1720644644866,-933.15827,0.0003274,7]
[331689463,1720644644876,-797.963113,0.0003274,7]
[331689464,1720644644887,-209.343788,0.0003274,7]
[331689465,1720644644897,-151.0,0.0003274,7]
[331689466,1720644644907,-209.343788,0.0003274,7]
[331689467,1720644644916,-1328.74767618,0.00032749,33]
[331689468,1720644644926,-3000.0,0.0003275,13]
[331689469,1720644644935,-759.409678,0.0003275,7]
[331689470,1720644644945,-3000.0,0.0003276,13]
[331689471,1720644644954,-449.955,0.0003276,7]
[331689472,1720644644963,-449.955,0.0003276,7]
[331689473,1720644644972,-266.438994,0.0003276,7]
[331689474,1720644644981,-266.438994,0.0003276,7]
[331689475,1720644644991,-190.891739,0.0003276,7]
[331689476,1720644645000,-190.891739,0.0003276,7]
[331689477,1720644645009,-3000.0,0.0003277,13]
[331689478,1720644645018,-3000.0,0.0003278,13]
[331689479,1720644645027,-151.0,0.0003278,7]
[331689480,1720644645036,-151.0,0.0003278,7]
[331689481,1720644645045,-151.0,0.0003278,7]
[331689482,1720644645054,-151.0,0.0003278,2]
[331689483,1720644645063,-948.570453,0.0003278,7]
[331689484,1720644645072,-151.0,0.0003278,2]
[331689485,1720644645082,-948.570453,0.0003278,7]
[331689486,1720644645091,-153.0,0.00032822,2]
[331689487,1720644645100,-153.0,0.00032822,2]
[331689488,1720644645110,-153.0,0.00032822,2]
[331689489,1720644645119,-153.0,0.00032822,2]
[331689490,1720644645129,-153.0,0.00032822,2]
[331689491,1720644645139,-153.0,0.00032822,2]
[331689492,1720644645148,-153.0,0.00032822,2]
[331689493,1720644645157,-153.0,0.00032822,2]
[331689494,1720644645167,-153.0,0.00032822,2]
[331689495,1720644645176,-151.0,0.00032822,7]
[331689496,1720644645186,-167.763916,0.00032822,7]
[331689497,1720644645195,-167.763916,0.00032822,7]
[331689498,1720644645204,-478.091984,0.00032822,7]
[331689499,1720644645213,-478.091984,0.00032822,7]
[331689500,1720644645223,-2532.894488,0.00032822,7]
[331689501,1720644645232,-2532.894488,0.00032822,7]
[331689502,1720644645242,-150.0,0.00032865,2]
[331689503,1720644645251,-500.0,0.00032876,7]
[331689504,1720644645261,-500.0,0.00032876,7]
[331689505,1720644645270,-500.0,0.00032876,7]
[331689506,1720644645280,-613.82163791,0.00032876,7]
[331689507,1720644645289,-593.23,0.00032876,7]
[331689508,1720644645299,-326.22437545,0.00032876,7]
[331689509,1720644645309,-500.0,0.00032876,7]
[331689510,1720644645318,-190.115878,0.00032876,7]
[331689511,1720644645328,-190.115878,0.00032876,7]
[331689512,1720644645338,-190.115878,0.00032876,7]
[331689513,1720644645348,-190.115878,0.00032876,7]
[331689514,1720644645358,-190.115878,0.00032876,7]
[331689515,1720644645368,-190.115878,0.00032876,7]
[331689516,1720644645378,-190.115878,0.00032876,7]
[331689517,1720644645388,-190.115878,0.00032876,7]
[331689518,1720644645397,-190.115878,0.00032876,7]
[331689520,1720644645407,-190.115878,0.00032876,7]
[331689522,1720644645416,-549.53602772,0.00032876,7]
[331689524,1720644645426,-500.0,0.00032876,7]
[331689526,1720644645435,-500.0,0.00032876,7]
[331689528,1720644645444,-500.0,0.00032876,7]
[331689530,1720644645454,-505.1385116,0.00032876,7]
[331689532,1720644645463,-522.51930045,0.00032876,7]
[331689534,1720644645472,-500.0,0.00032876,7]
[331689536,1720644645481,-500.0,0.00032876,7]
[331689538,1720644645490,-500.0,0.00032876,7]
[331689540,1720644645500,-504.10091099,0.00032876,7]
[331689542,1720644645509,-500.0,0.00032876,7]
[331689544,1720644645518,-477.16209449,0.00032876,7]
[331689546,1720644645528,-500.0,0.00032876,7]
[331689548,1720644645538,-500.0,0.00032876,7]
[331689550,1720644645547,-500.0,0.00032876,7]
[331689552,1720644645556,-500.0,0.00032876,7]
[331689553,1720644645565,-547.83,0.00032876,7]
[331689555,1720644645575,-500.00756614,0.00032876,7]
[331689557,1720644645584,-500.0,0.00032876,2]
[331689559,1720644645594,-1797.82,0.00032876,4]
[331689561,1720644645604,-500.0,0.00032876,7]
[331689564,1720644645613,-500.0,0.00032876,7]
[331689567,1720644645623,-500.0,0.00032876,7]
[331689569,1720644645633,-504.49720481,0.00032876,7]
[331689571,1720644645642,-500.0,0.00032876,7]
[331689572,1720644645652,-196.34720841,0.00032876,7]
[331689585,1720644645750,-227.836502,0.00028641,7]
[331689587,1720644645759,-759.409678,0.00032315,7]
[331689589,1720644645768,-759.409678,0.00032373,7]
[331689591,1720644645777,-759.409678,0.0003251,7]
[331689592,1720644645786,-227.836502,0.0003275,7]
[331689594,1720644645796,-449.25540035,0.00032876,7]
[331689596,1720644645805,-79.77412091,0.00032876,7]
[331689607,1720644646304,-731.25757574,0.00032525,7]
[331689608,1720644646443,-151.0,0.00028641,7]
[331689609,1720644646453,-268.65851187,0.00029861,2]
[331689610,1720644646463,-227.836502,0.00030879,7]
[331689611,1720644646472,-227.836502,0.00032315,7]
[331689612,1720644646482,-227.836502,0.00032373,7]
[331689613,1720644646491,-95.03198213,0.0003251,7]
[331689642,1720645537602,429.73721928,0.00016255,2]
[331689643,1720645537634,357.23096929,0.00016255,2]
[331689647,1720645564845,179.27532338,0.00016255,2]
[331689648,1720645564878,561.39497555,0.00016255,2]
[331689652,1720645577412,245.18734288,0.00016255,2]
[331689653,1720645577439,1854.50113432,0.00016255,2]
[331689654,1720645578772,154.83742071,0.00016255,2]
[331689656,1720645586460,19401.50973228,0.00016255,2]
[331689657,1720645586850,15414.79924926,0.00016255,2]
[331689658,1720645590156,154.83742071,0.00016255,2]
[331689664,1720645689487,13128.40965294,0.00016255,2]
[331689665,1720645701895,1974.46480504,0.00016255,2]
[331689666,1720645722532,1707.09413431,0.00016255,2]
[331689667,1720645725858,-251.71857067,0.00018899,2]
[331689668,1720645725894,-154.91459617,0.00019165,2]
[331689669,1720645725934,-559.96033241,0.00019165,2]
[331689670,1720645725978,-389.91235976,0.00019165,2]
[331689671,1720645726013,-209.22009832,0.00019165,2]
[331689672,1720645726051,-300.0,0.00019702,2]
[331689673,1720645726087,-67.46104117,0.00019702,2]
[331689674,1720645726135,-232.53895883,0.00019702,2]
[331689675,1720645726170,-207.23706577,0.00019703,2]
[331689725,1720645832245,-473.61680392,0.00018899,2]
[331689727,1720645832255,-139.11819608,0.00018899,2]
[331689773,1720645833285,-427.8867103,0.00018899,2]
[331689774,1720645833294,-158.23203514,0.00018899,2]
[331689775,1720645833304,-195.91834676,0.00019165,2]
[331689776,1720645833313,-179.97189068,0.00019165,2]
[331689777,1720645833322,-121.65602104,0.00019165,2]
[331689831,1720645838198,-33.02687901,0.00019165,2]
[331689832,1720645838207,-197.11873021,0.00019165,2]
[331689833,1720645838217,-338.22474862,0.00019165,2]
[331689834,1720645838226,-130.0416479,0.00019165,2]
[331689835,1720645838463,-54.09075035,0.00019165,2]
[331689836,1720645838472,-181.84215111,0.00019703,2]
[331689837,1720645838481,-209.22009832,0.00019703,2]
[331689838,1720645838491,-300.0,0.00021094,2]
[331689839,1720645838501,-216.18224144,0.00021095,2]
[331689840,1720645838510,-157.709186,0.00021096,2]
[331689841,1720645838520,-235.439952,0.00021096,2]
[331689842,1720645838530,-250.0,0.00021392,2]
[331689843,1720645838540,-300.0,0.00022578,2]
[331689844,1720645838550,-318.82736005,0.00022579,2]
[331689845,1720645838559,-287.142363,0.00023751,2]
[331689846,1720645838569,-3565.9061517,0.00023882,2]
[331689847,1720645838578,-154.68290005,0.00023882,2]
[331689848,1720645838588,-758.295842,0.00023882,2]
[331689849,1720645838598,-2421.99241206,0.00023882,2]
[331689850,1720645838608,-2126.99307263,0.00023882,2]
[331689851,1720645838618,-166.666666,0.00024507,2]
[331689852,1720645838627,-161.747123,0.00024632,2]
[331689853,1720645838637,-24900.0,0.00024741,2]
[331689854,1720645838648,-905.74562122,0.00024813,2]
[331689855,1720645838658,-419.0,0.00024836,2]
[331689856,1720645838667,-998.3640944,0.00024913,2]
[331689857,1720645838677,-229.22032487,0.00025127,2]
[331689858,1720645838689,-166.666666,0.00025175,2]
[331689859,1720645838698,-375.8442462,0.00025255,2]
[331689860,1720645838707,-303.98662508,0.00025401,2]
[331689861,1720645838716,-30000.0,0.00025501,2]
[331689862,1720645838726,-166.666666,0.00025843,2]
[331689863,1720645838735,-4076.30270863,0.00025859,3]
[331689864,1720645838744,-166.666666,0.00026511,2]
[331689865,1720645838753,-905.74562116,0.00026683,2]
[331689866,1720645838763,-191.04644475,0.00027084,2]
[331689867,1720645838772,-166.666666,0.00027179,2]
[331689868,1720645838782,-880.25528941,0.00027184,2]
[331689869,1720645838792,-235.439952,0.00027195,2]
[331689870,1720645838801,-162.025446,0.00027321,2]
[331689871,1720645838811,-158.527152,0.00027397,120]
[331689872,1720645838820,-166.666666,0.00027847,2]
[331689873,1720645838830,-530.20355034,0.00027999,2]
[331689874,1720645838839,-599.14160025,0.00027999,2]
[331689875,1720645838848,-599.14160025,0.00027999,2]
[331689876,1720645838857,-905.74562116,0.00028553,2]
[331689877,1720645838867,-303.98662506,0.00028905,2]
[331689878,1720645838876,-453.22022894,0.00029,2]
[331689879,1720645838885,-1159.46314868,0.00029803,2]
[331689880,1720645838895,-195.31716393,0.00029803,2]
[331689881,1720645838904,-790.54047591,0.00029803,2]
[331689882,1720645838914,-458.44819353,0.00029813,2]
[331689883,1720645838924,-348.36389326,0.00029823,2]
[331689884,1720645838933,-777.60346913,0.00029861,2]
[331689885,1720645838945,-777.60346913,0.00029861,2]
[331689886,1720645838954,-402.60952539,0.0002987,2]
[331689887,1720645838963,-170.94135721,0.00029879,2]
[331689888,1720645838973,-208.17979125,0.00029879,2]
[331689889,1720645838983,-276.69913264,0.00029903,2]
[331689890,1720645838993,-283.43817222,0.00029903,2]
[331689891,1720645839002,-165.20623857,0.00029904,2]
[331689892,1720645839012,-165.20623857,0.00029904,2]
[331689893,1720645839022,-1065.81451026,0.00029904,2]
[331689894,1720645839031,-7549.96,0.0002997,3]
[331689895,1720645839042,-1155.16872122,0.00029979,2]
[331689896,1720645839051,-154.54409492,0.00029979,2]
[331689897,1720645839062,-154.77557542,0.00029979,2]
[331689898,1720645839072,-9059.95,0.0002998,3]
[331689899,1720645839081,-247.89,0.0002999,3]
[331689900,1720645839091,-5701.27,0.0002999,3]
[331689901,1720645839101,-10871.94,0.0002999,3]
[331689902,1720645839111,-154.54409492,0.00029999,2]
[331689903,1720645839121,-157.27126622,0.0003,4]
[331689904,1720645839131,-8550.96884589,0.0003,5]
[331689905,1720645839140,-643.66349447,0.0003,4]
[331689906,1720645839150,-471.68236775,0.0003,4]
[331689907,1720645839159,-599.96952357,0.0003,4]
[331689908,1720645839169,-371.36715798,0.00030229,4]
[331689909,1720645839179,-154.69833824,0.00030229,4]
[331689910,1720645839190,-208.83853644,0.00030229,4]
[331689911,1720645839200,-743.67,0.00030413,3]
[331689912,1720645839210,-905.74562116,0.00030423,2]
[331689913,1720645839220,-4076.30270863,0.00031223,4]
[331689914,1720645839229,-306.0,0.00031233,2]
[331689915,1720645839239,-153.0,0.00031233,2]
[331689916,1720645839249,-235.67722639,0.00031251,4]
[331689917,1720645839258,-495.78,0.0003136,3]
[331689918,1720645839268,-1406.0,0.0003165,2]
[331689919,1720645839277,-781.28170085,0.00032172,2]
[331689920,1720645839287,-2000.0,0.0003229,2]
[331689921,1720645839296,-905.74562116,0.00032294,2]
[331689922,1720645839306,-781.28170085,0.00032298,2]
[331689923,1720645839315,-8152.60541726,0.0003236,4]
[331689924,1720645839330,-38744.35701427,0.0003239,2]
[331689925,1720645839340,-303.98662506,0.00032409,2]
[331689926,1720645839350,-781.28170085,0.00032424,2]
[331689927,1720645839360,-4076.30270863,0.0003248,4]
[331689928,1720645839370,-8152.60541726,0.00032482,4]
[331689929,1720645839379,-4076.30270863,0.0003249,4]
[331689930,1720645839389,-6368.32270368,0.00032509,5]
[331689931,1720645839399,-500.0,0.00032509,2]
[331689932,1720645839408,-500.0,0.00032509,2]
[331689933,1720645839418,-500.0,0.00032509,2]
[331689934,1720645839427,-500.0,0.00032509,2]
[331689935,1720645839439,-257.53609886,0.00032509,2]
[331689936,1720645839448,-500.0,0.00032509,2]
[331689937,1720645839457,-192.39470163,0.00032509,2]
[331689938,1720645839467,-500.0,0.00032509,2]
[331689939,1720645839477,-500.0,0.00032509,2]
[331689940,1720645839487,-500.0,0.00032509,2]
[331689941,1720645839496,-500.0,0.00032509,2]
[331689942,1720645839506,-500.0,0.00032509,2]
[331689943,1720645839515,-500.0,0.00032509,2]
[331689944,1720645839525,-500.0,0.00032509,2]
[331689945,1720645839534,-500.0,0.00032509,2]
[331689946,1720645839544,-500.0,0.00032509,2]
[331689947,1720645839553,-331.42853988,0.00032509,2]
[331689948,1720645839563,-246.43016025,0.00032509,2]
[331689949,1720645839572,-500.0,0.00032509,2]
[331689950,1720645839583,-500.0,0.00032509,2]
[331689951,1720645839593,-500.84453017,0.00032509,2]
[331689952,1720645839602,-500.0,0.00032509,2]
[331689953,1720645839611,-338.39759235,0.00032509,2]
[331689954,1720645839620,-500.0,0.00032509,2]
[331689955,1720645839630,-500.0,0.00032509,2]
[331689956,1720645839744,-500.0,0.00032509,2]
[331689957,1720645839754,-500.0,0.00032509,2]
[331689958,1720645839764,-500.0,0.00032509,2]
[331689959,1720645839774,-500.0,0.00032509,2]
[331689960,1720645839784,-500.0,0.00032509,2]
[331689961,1720645839793,-500.0,0.00032509,2]
[331689962,1720645839803,-500.0,0.00032509,2]
[331689963,1720645839812,-500.0,0.00032509,2]
[331689964,1720645839822,-500.0,0.00032509,2]
[331689965,1720645839832,-500.0,0.00032509,2]
[331689966,1720645839842,-500.0,0.00032509,2]
[331689967,1720645839851,-500.0,0.00032509,2]
[331689968,1720645839860,-500.0,0.00032509,2]
[331689969,1720645839870,-500.0,0.00032509,2]
[331689970,1720645839879,-500.0,0.00032509,2]
[331689971,1720645839889,-500.0,0.00032509,2]
[331689972,1720645839899,-500.0,0.00032509,2]
[331689974,1720645839908,-500.0,0.00032509,2]
[331689976,1720645839918,-500.0,0.00032509,2]
[331689978,1720645839927,-500.0,0.00032509,2]
[331689979,1720645839937,-500.0,0.00032509,2]
[331689980,1720645839946,-500.0,0.00032509,2]
[331689981,1720645839955,-500.0,0.00032509,2]
[331689983,1720645839964,-500.0,0.00032509,2]
[331689985,1720645839973,-500.0,0.00032509,2]
[331689986,1720645839982,-500.0,0.00032509,2]
[331689988,1720645839992,-490.39799835,0.00032509,2]
[331689990,1720645840001,-500.0,0.00032509,2]
[331689991,1720645840011,-500.0,0.00032509,2]
[331689993,1720645840020,-500.0,0.00032509,2]
[331689994,1720645840030,-500.0,0.00032509,2]
[331689995,1720645840040,-500.0,0.00032509,2]
[331689996,1720645840051,-500.0,0.00032509,2]
[331689997,1720645840060,-500.0,0.00032509,2]
[331689998,1720645840070,-500.0,0.00032509,2]
[331689999,1720645840079,-371.99904659,0.00032509,2]
[331690000,1720645840089,-500.0,0.00032509,2]
[331690001,1720645840098,-500.0,0.00032509,2]
[331690002,1720645840108,-500.0,0.00032509,2]
[331690003,1720645840117,-500.0,0.00032509,2]
[331690004,1720645840127,-500.0,0.00032509,2]
[331690006,1720645840136,-500.0,0.00032509,2]
[331690007,1720645840146,-500.0,0.00032509,2]
[331690009,1720645840155,-500.0,0.00032509,2]
[331690010,1720645840165,-500.00000001,0.00032509,2]
[331690011,1720645840173,-500.0,0.00032509,2]
[331690012,1720645840183,-500.0,0.00032509,2]
[331690013,1720645840193,-500.0,0.00032509,2]
[331690014,1720645840202,-466.6642633,0.0003251,4]
[331690015,1720645840211,-5611.49557264,0.0003251,4]
[331690016,1720645840220,-284.6000077,0.0003251,3]
[331690017,1720645840229,-2000.0,0.0003251,4]
[331690018,1720645840238,-312.15335566,0.0003251,4]
[331690019,1720645840247,-151.0,0.0003251,7]
[331690020,1720645840256,-217.660025,0.0003251,7]
[331690021,1720645840265,-4076.30270863,0.00032513,4]
[331690022,1720645840274,-8054.41536107,0.00032523,4]
[331690023,1720645840283,-781.28170085,0.0003255,2]
[331690024,1720645840291,-153.0,0.00032603,2]
[331690025,1720645840300,-229.230508,0.00032603,7]
[331690026,1720645840309,-229.230508,0.00032603,7]
[331690027,1720645840318,-151.0,0.00032603,7]
[331690028,1720645840327,-151.0,0.00032603,7]
[331690029,1720645840335,-151.0,0.00032603,7]
[331690030,1720645840344,-151.0,0.00032603,7]
[331690031,1720645840353,-151.0,0.00032603,7]
[331690032,1720645840362,-151.0,0.00032603,7]
[331690033,1720645840371,-781.28170085,0.00032676,2]
[331690034,1720645840379,-150.0,0.00032699,2]
[331690035,1720645840388,-150.0,0.00032699,2]
[331690036,1720645840397,-150.5,0.00032746,62]
[331690037,1720645840406,-12228.9081259,0.00032756,4]
[331690038,1720645840415,-150.5,0.00032756,62]
[331690039,1720645840424,-8152.60541726,0.00032766,4]
[331690040,1720645840433,-150.5,0.00032766,62]
[331690041,1720645840443,-151.0,0.00032766,7]
[331690042,1720645840452,-759.868347,0.00032766,7]
[331690043,1720645840460,-759.868347,0.00032766,7]
[331690044,1720645840469,-151.0,0.00032766,7]
[331690045,1720645840478,-151.0,0.00032766,7]
[331690046,1720645840487,-151.0,0.00032766,7]
[331690047,1720645840496,-284.571136,0.00032766,7]
[331690048,1720645840505,-284.571136,0.00032766,7]
[331690049,1720645840514,-151.0,0.00032766,2]
[331690050,1720645840522,-151.0,0.00032766,7]
[331690051,1720645840531,-229.230508,0.00032766,7]
[331690052,1720645840540,-229.230508,0.00032766,7]
[331690053,1720645840549,-151.0,0.00032766,7]
[331690054,1720645840558,-151.0,0.00032766,7]
[331690055,1720645840567,-229.231756,0.00032766,7]
[331690056,1720645840576,-151.0,0.00032766,7]
[331690057,1720645840585,-151.0,0.00032766,7]
[331690058,1720645840594,-151.0,0.00032766,7]
[331690059,1720645840603,-88888.0,0.00032776,5]
[331690060,1720645840612,-151.0,0.00032776,7]
[331690061,1720645840621,-151.0,0.00032776,7]
[331690062,1720645840630,-284.571136,0.00032776,7]
[331690063,1720645840639,-284.571136,0.00032776,7]
[331690064,1720645840648,-151.0,0.00032776,2]
[331690065,1720645840657,-151.0,0.00032776,7]
[331690066,1720645840666,-229.230508,0.00032776,7]
[331690067,1720645840675,-229.230508,0.00032776,7]
[331690068,1720645840684,-151.0,0.00032776,7]
[331690069,1720645840696,-151.0,0.00032776,7]
[331690070,1720645840705,-151.0,0.00032776,7]
[331690071,1720645840714,-151.0,0.00032776,7]
[331690072,1720645840723,-151.0,0.00032776,7]
[331690073,1720645840732,-693.707601,0.00032776,7]
[331690074,1720645840741,-151.0,0.00032776,7]
[331690075,1720645840750,-693.707601,0.00032776,7]
[331690076,1720645840759,-151.0,0.00032776,7]
[331690077,1720645840768,-151.0,0.00032776,7]
[331690078,1720645840777,-151.0,0.00032776,7]
[331690079,1720645840786,-5292.88975486,0.00032789,2]
[331690080,1720645840795,-150.0,0.000328,13]
[331690081,1720645840803,-373.0,0.000328,6]
[331690082,1720645840812,-150.0,0.000328,2]
[331690083,1720645840822,-1003.764437,0.000328,10]
[331690084,1720645840831,-759.868347,0.00032818,7]
[331690085,1720645840840,-759.868347,0.00032818,7]
[331690086,1720645840849,-151.0,0.00032818,7]
[331690087,1720645840858,-15120.04809498,0.00032866,4]
[331690088,1720645840872,-9337.76815682,0.00032866,4]
[331690089,1720645840881,-366.6405652,0.00032872,2]
[331690090,1720645840890,-500.0,0.00032876,7]
[331690092,1720645840899,-500.0,0.00032876,7]
[331690093,1720645840908,-500.0,0.00032876,7]
[331690095,1720645840917,-500.0,0.00032876,7]
[331690096,1720645840926,-504.49720481,0.00032876,7]
[331690097,1720645840935,-436.0976372,0.00032876,7]
[331690098,1720645840946,-251.40571538,0.00032876,7]
[331690099,1720645840955,-500.0,0.00032876,7]
[331690100,1720645840964,-500.0,0.00032876,7]
[331690101,1720645840973,-500.0,0.00032876,7]
[331690102,1720645840981,-500.0,0.00032876,7]
[331690103,1720645840992,-500.0,0.00032876,7]
[331690104,1720645841002,-500.0,0.00032876,7]
[331690105,1720645841011,-500.0,0.00032876,7]
[331690106,1720645841020,-500.0,0.00032876,7]
[331690107,1720645841029,-500.0,0.00032876,7]
[331690108,1720645841039,-508.15813503,0.00032876,7]
[331690109,1720645841050,-500.0,0.00032876,7]
[331690110,1720645841060,-500.0,0.00032876,7]
[331690111,1720645841070,-500.0,0.00032876,7]
[331690112,1720645841079,-510.76347615,0.00032876,7]
[331690113,1720645841088,-500.0,0.00032876,7]
[331690114,1720645841098,-446.45355739,0.00032876,7]
[331690115,1720645841107,-500.0,0.00032876,7]
[331690116,1720645841117,-500.0,0.00032876,7]
[331690117,1720645841126,-508.03266137,0.00032876,7]
[331690118,1720645841137,-503.56758103,0.00032876,7]
[331690119,1720645841148,-500.0,0.00032876,7]
[331690120,1720645841159,-504.59237661,0.00032876,7]
[331690121,1720645841170,-373.74386389,0.00032876,7]
[331690122,1720645841180,-525.6161976,0.00032876,7]
[331690123,1720645841196,-500.0,0.00032876,7]
[331690124,1720645841205,-500.0,0.00032876,7]
[331690125,1720645841214,-500.0,0.00032876,7]
[331690126,1720645841223,-511.40716072,0.00032876,7]
[331690127,1720645841232,-473.38967444,0.00032876,7]
[331690128,1720645841242,-523.87512682,0.00032876,7]
[331690129,1720645841251,-500.0,0.00032876,7]
[331690130,1720645841261,-500.0,0.00032876,7]
[331690131,1720645841271,-500.0,0.00032876,7]
[331690132,1720645841280,-500.0,0.00032876,7]
[331690133,1720645841290,-500.0,0.00032876,7]
[331690134,1720645841299,-512.70080887,0.00032876,7]
[331690135,1720645841308,-500.0,0.00032876,7]
[331690136,1720645841318,-503.76980122,0.00032876,7]
[331690137,1720645841327,-500.0,0.00032876,7]
[331690138,1720645841336,-509.66054696,0.00032876,7]
[331690139,1720645841346,-500.0,0.00032876,7]
[331690140,1720645841355,-500.0,0.00032876,7]
[331690141,1720645841364,-505.26173045,0.00032876,7]
[331690142,1720645841372,-586.51,0.00032876,7]
[331690143,1720645841382,-500.0,0.00032876,7]
[331690144,1720645841391,-500.0,0.00032876,7]
[331690145,1720645841400,-500.0,0.00032876,7]
[331690146,1720645841410,-500.0,0.00032876,7]
[331690147,1720645841419,-276.3927466,0.00032876,7]
[331690148,1720645841428,-500.0,0.00032876,7]
[331690149,1720645841440,-500.0,0.00032876,7]
[331690150,1720645841449,-504.94315929,0.00032876,7]
[331690151,1720645841458,-500.0,0.00032876,7]
[331690152,1720645841467,-500.0,0.00032876,7]
[331690153,1720645841476,-500.0,0.00032876,7]
[331690154,1720645841485,-500.0,0.00032876,7]
[331690155,1720645841494,-500.0,0.00032876,7]
[331690156,1720645841503,-500.0,0.00032876,2]
[331690157,1720645841512,-500.0,0.00032876,7]
[331690158,1720645841521,-506.08824838,0.00032876,7]
[331690159,1720645841531,-500.0,0.00032876,7]
[331690160,1720645841540,-396.90271777,0.00032876,7]
[331690161,1720645841549,-500.0,0.00032876,7]
[331690162,1720645841559,-500.0,0.00032876,7]
[331690163,1720645841568,-500.0,0.00032876,7]
[331690164,1720645841579,-506.70035547,0.00032876,7]
[331690165,1720645841588,-500.0,0.00032876,7]
[331690166,1720645841598,-704.0,0.00032876,7]
[331690167,1720645841608,-729.04,0.00032876,7]
[331690168,1720645841617,-500.0,0.00032876,7]
[331690169,1720645841627,-501.61520268,0.00032876,7]
[331690170,1720645841636,-500.0,0.00032876,7]
[331690171,1720645841646,-500.82595431,0.00032876,3]
[331690172,1720645841656,-151.0,0.00032876,7]
[331690173,1720645841665,-151.0,0.00032876,7]
[331690174,1720645841675,-151.0,0.00032876,7]
[331690175,1720645841684,-513.95739066,0.00032876,7]
[331690176,1720645841696,-372.87948702,0.00032876,7]
[331690177,1720645841705,-500.0,0.00032876,7]
[331690178,1720645841714,-521.69716309,0.00032876,7]
[331690179,1720645841723,-500.0,0.00032876,7]
[331690180,1720645841732,-433.16515063,0.00032876,7]
[331690181,1720645841743,-500.0,0.00032876,2]
[331690182,1720645841752,-500.0,0.00032876,7]
[331690183,1720645841761,-511.18774902,0.00032876,7]
[331690184,1720645841771,-500.0,0.00032876,7]
[331690185,1720645841781,-500.0,0.00032876,7]
[331690186,1720645841792,-500.0,0.00032876,7]
[331690187,1720645841803,-500.0,0.00032876,7]
[331690188,1720645841812,-500.0,0.00032876,7]
[331690189,1720645841822,-516.38473904,0.00032876,7]
[331690190,1720645841832,-500.0,0.00032876,7]
[331690191,1720645841842,-564.74916678,0.00032876,7]
[331690192,1720645841851,-500.0,0.00032876,7]
[331690193,1720645841861,-500.0,0.00032876,7]
[331690194,1720645841870,-500.0,0.00032876,7]
[331690195,1720645841879,-509.1633017,0.00032876,7]
[331690196,1720645841889,-500.0,0.00032876,7]
[331690197,1720645841898,-500.0,0.00032876,7]
[331690198,1720645841909,-500.0,0.00032876,7]
[331690199,1720645841919,-645.67381914,0.00032876,7]
[331690200,1720645841928,-500.0,0.00032876,7]
[331690201,1720645841939,-317.49296519,0.00032876,7]
[331690202,1720645841949,-500.0,0.00032876,7]
[331690203,1720645841958,-1061.41,0.00032876,7]
[331690204,1720645841967,-448.45902527,0.00032876,7]
[331690205,1720645841977,-500.0,0.00032876,7]
[331690206,1720645841989,-500.0,0.00032876,7]
[331690207,1720645841998,-500.0,0.00032876,7]
[331690208,1720645842008,-562.68953031,0.00032876,7]
[331690209,1720645842017,-500.0,0.00032876,7]
[331690210,1720645842026,-500.0,0.00032876,7]
[331690211,1720645842036,-349.19433368,0.00032876,7]
[331690212,1720645842046,-500.0,0.00032876,7]
[331690213,1720645842055,-500.0,0.00032876,7]
[331690214,1720645842154,-500.0,0.00032876,7]
[331690215,1720645842163,-500.0,0.00032876,7]